bitfinex/quotes_BTCUSD_20241022
["timestamp","ask_amount","ask_price","bid_price","bid_amount"]
[1729580062892,0.00342949,67680.0,67679.0,1.11436256]
[1729580063339,0.00242949,67680.0,67679.0,1.11636256]
[1729580063766,0.00342949,67680.0,67679.0,1.12436256]
[1729580063974,0.00242949,67680.0,67679.0,1.10636256]
[1729580064413,0.00342949,67680.0,67679.0,1.11236256]
[1729580064843,0.00442949,67680.0,67679.0,1.11836256]
[1729580065090,0.00442949,67680.0,67679.0,0.71795588]
[1729580065290,0.00442949,67680.0,67679.0,0.81044426]
[1729580068747,0.00442949,67680.0,67679.0,0.82044426]
[1729580069225,0.00442949,67680.0,67679.0,1.14240341]
[1729580069677,0.00442949,67680.0,67679.0,1.14440341]
[1729580069902,0.00442949,67680.0,67679.0,1.29336256]
[1729580071429,0.00442949,67680.0,67679.0,1.29136256]
[1729580072835,0.00442949,67680.0,67679.0,1.29336256]
[1729580073517,0.00442949,67680.0,67679.0,1.29136256]
[1729580074676,0.00442949,67680.0,67679.0,1.14240341]
[1729580075495,0.00442949,67680.0,67679.0,1.14440341]
[1729580079032,0.00442949,67680.0,67679.0,1.14240341]
[1729580089257,0.00442949,67680.0,67679.0,1.13740341]
[1729580090892,0.00442949,67680.0,67679.0,1.13240341]
[1729580091352,0.00442949,67680.0,67679.0,1.28136256]
[1729580093442,0.00442949,67680.0,67679.0,1.13240341]
[1729580096079,0.00442949,67680.0,67679.0,0.86691503]
[1729580100671,0.00442949,67680.0,67679.0,0.86935175]
[1729580103035,0.00442949,67680.0,67679.0,0.96184013]
[1729580106742,0.00242949,67680.0,67679.0,0.95584013]
[1729580107162,0.00142949,67680.0,67679.0,0.94984013]
[1729580107336,0.00142949,67680.0,67679.0,0.95384013]
[1729580108191,0.00242949,67680.0,67679.0,0.95984013]
[1729580109646,0.00342949,67680.0,67679.0,0.96184013]
[1729580111520,0.00342949,67680.0,67679.0,0.7203926]
[1729580111713,0.00342949,67680.0,67679.0,0.6203926]
[1729580112177,0.00342949,67680.0,67679.0,0.4676366]
[1729580112383,0.09186388,67680.0,67679.0,0.4676366]
[1729580112612,0.2552012,67680.0,67679.0,0.4676366]
[1729580112823,0.16672803,67680.0,67679.0,0.4676366]
[1729580113257,0.09188586,67680.0,67679.0,0.4676366]
[1729580113485,0.2551844,67680.0,67679.0,0.4676366]
[1729580114199,0.16669967,67680.0,67679.0,0.4676366]
[1729580114455,0.58244205,67680.0,67679.0,0.0243666]
[1729580114667,0.86409061,67680.0,67679.0,0.0243666]
[1729580114893,0.7314012,67680.0,67679.0,0.012886]
[1729580115167,0.7304012,67680.0,67679.0,0.006886]
[1729580115577,0.7294012,67680.0,67679.0,0.002886]
[1729580115796,0.7294012,67680.0,67679.0,0.004886]
[1729580116051,0.7294012,67680.0,67679.0,0.002886]
[1729580116278,0.86188982,67680.0,67679.0,0.000886]
[1729580116504,0.86188982,67680.0,67662.0,0.22265268]
[1729580116505,0.1731,67669.0,67662.0,0.22265268]
[1729580116734,0.31365882,67680.0,67668.0,0.09248838]
[1729580116735,0.0911,67674.0,67668.0,0.09248838]
[1729580117172,0.0911,67674.0,67671.0,0.09248838]
[1729580117390,0.0911,67674.0,67669.0,0.00804242]
[1729580117708,0.00142949,67680.0,67666.0,0.295568]
[1729580117709,0.14249699,67680.0,67671.0,0.09248838]
[1729580117937,0.22265268,67679.0,67677.0,0.09248838]
[1729580118149,0.22265268,67679.0,67674.0,0.0791]
[1729580118418,0.00142949,67680.0,67678.0,0.00802034]
[1729580118604,0.00142949,67680.0,67675.0,0.09248838]
[1729580118796,0.00142949,67680.0,67679.0,0.00802333]
[1729580119475,0.00142949,67680.0,67675.0,0.09248838]
[1729580119701,0.003,67679.0,67675.0,0.09248838]
[1729580120630,0.003,67679.0,67676.0,0.14895915]
[1729580120840,0.003,67679.0,67678.0,0.24024638]
[1729580121062,0.003,67679.0,67678.0,0.39216037]
[1729580121315,0.003,67679.0,67678.0,0.38920553]
[1729580121751,0.00142949,67680.0,67678.0,0.38920553]
[1729580121752,0.00142949,67680.0,67679.0,0.147756]
[1729580121972,0.00942949,67680.0,67679.0,0.29771515]
[1729580122714,0.00142949,67680.0,67679.0,0.29671515]
[1729580123186,0.00142949,67680.0,67679.0,0.30171515]
[1729580125180,0.00142949,67680.0,67679.0,0.30671515]
[1729580127788,0.00142949,67680.0,67679.0,0.30171515]
[1729580128202,0.00142949,67680.0,67679.0,0.30371515]
[1729580128415,0.00142949,67680.0,67679.0,0.29871515]
[1729580128925,0.00142949,67680.0,67679.0,0.30071515]
[1729580129311,0.00142949,67680.0,67679.0,0.15095915]
[1729580129739,0.00142949,67680.0,67679.0,0.15295915]
[1729580130185,0.00142949,67680.0,67679.0,0.15095915]
[1729580130842,0.00142949,67680.0,67679.0,0.14895915]
[1729580131044,0.00142949,67680.0,67679.0,0.24144753]
[1729580131254,0.00242949,67680.0,67679.0,0.24144753]
[1729580131510,0.00142949,67680.0,67679.0,0.24144753]
[1729580131950,0.00442949,67680.0,67679.0,0.24144753]
[1729580132813,0.00442949,67680.0,67679.0,0.14895915]
[1729580133018,0.00642949,67680.0,67679.0,0.24144753]
[1729580134043,0.00642949,67680.0,67679.0,0.24939184]
[1729580134665,0.00642949,67680.0,67679.0,0.15690346]
[1729580139436,0.00642949,67680.0,67679.0,0.00794431]
[1729580139879,0.00642949,67680.0,67675.0,0.1]
[1729580140555,0.00642949,67680.0,67673.0,0.19248838]
[1729580140775,0.00642949,67680.0,67676.0,0.00930427]
[1729580140991,0.00642949,67680.0,67674.0,0.1]
[1729580141213,0.00642949,67680.0,67677.0,0.00930182]
[1729580141428,0.00342949,67680.0,67678.0,0.00929937]
[1729580141641,0.00342949,67680.0,67675.0,0.002]
[1729580141873,0.00142949,67680.0,67676.0,0.00930427]
[1729580142319,0.00142949,67680.0,67675.0,0.102]
[1729580142564,0.00142949,67680.0,67677.0,0.00930182]
[1729580142775,0.00142949,67680.0,67676.0,0.00930427]
[1729580143027,0.00142949,67680.0,67678.0,0.00929937]
[1729580143238,0.00142949,67680.0,67677.0,0.00930182]
[1729580143444,0.00142949,67680.0,67678.0,0.00929937]
[1729580143647,0.00142949,67680.0,67676.0,0.001]
[1729580143849,0.00142949,67680.0,67677.0,0.00930182]
[1729580144735,0.00142949,67680.0,67675.0,0.102]
[1729580144929,0.00142949,67680.0,67678.0,0.00931215]
[1729580145168,0.00142949,67680.0,67674.0,0.19248838]
[1729580145368,0.00142949,67680.0,67679.0,0.00930969]
[1729580145567,0.00242949,67680.0,67675.0,0.1]
[1729580145774,0.00142949,67680.0,67679.0,0.00930969]
[1729580145948,0.00142949,67680.0,67675.0,0.1]
[1729580146170,0.00842949,67680.0,67679.0,0.00930969]
[1729580146314,0.00842949,67680.0,67674.0,0.19248838]
[1729580146315,0.01242949,67680.0,67674.0,0.19248838]
[1729580146528,0.01242949,67680.0,67679.0,0.00930969]
[1729580146750,0.01242949,67680.0,67675.0,0.1]
[1729580146966,0.00142949,67680.0,67675.0,0.1]
[1729580147176,0.00442949,67680.0,67676.0,0.00931705]
[1729580148232,0.00942949,67680.0,67679.0,0.001]
[1729580148438,0.10072949,67680.0,67679.0,0.00930969]
[1729580148642,0.10072949,67680.0,67675.0,0.1]
[1729580148860,0.10572949,67680.0,67676.0,0.00931705]
[1729580149070,0.10072949,67680.0,67676.0,0.00931705]
[1729580149587,0.10872949,67680.0,67679.0,0.001]
[1729580149707,0.10872949,67680.0,67676.0,0.00931705]
[1729580149913,0.11272949,67680.0,67679.0,0.00930969]
[1729580150114,0.11772949,67680.0,67675.0,0.1]
[1729580150336,0.11372949,67680.0,67675.0,0.1]
[1729580150552,0.11372949,67680.0,67676.0,0.00931705]
[1729580150757,0.12072949,67680.0,67679.0,0.001]
[1729580150967,0.12072949,67680.0,67679.0,0.01030969]
[1729580151403,0.11372949,67680.0,67679.0,0.00930969]
[1729580151609,0.11372949,67680.0,67672.0,0.0818]
[1729580151610,0.11372949,67680.0,67673.0,0.147768]
[1729580151854,0.11372949,67680.0,67674.0,0.00932196]
[1729580151855,0.10372949,67680.0,67674.0,0.00932196]
[1729580152276,0.11172949,67680.0,67679.0,0.001]
[1729580152503,0.10372949,67680.0,67674.0,0.00932196]
[1729580152730,0.10572949,67680.0,67675.0,0.00931951]
[1729580152967,0.10572949,67680.0,67673.0,0.147768]
[1729580153207,0.10272949,67680.0,67674.0,0.00932196]
[1729580153413,0.10272949,67680.0,67679.0,0.001]
[1729580153414,0.11072949,67680.0,67679.0,0.001]
[1729580153618,0.10672949,67680.0,67679.0,0.001]
[1729580154279,0.10072949,67680.0,67672.0,0.22957]
[1729580154543,0.10372949,67680.0,67672.0,0.37852915]
[1729580154749,0.10372949,67680.0,67673.0,0.0093263]
[1729580154962,0.10672949,67680.0,67673.0,0.0093263]
[1729580155171,0.10072949,67680.0,67673.0,0.0093263]
[1729580155833,0.10072949,67680.0,67673.0,0.1570943]
[1729580156259,0.10172949,67680.0,67673.0,0.1570943]
[1729580156478,0.10072949,67680.0,67673.0,0.0093263]
[1729580156911,0.10372949,67680.0,67673.0,0.0093263]
[1729580157140,0.14791144,67680.0,67673.0,0.0093263]
[1729580157353,0.14691144,67680.0,67673.0,0.0093263]
[1729580157592,0.10272949,67680.0,67673.0,0.1570953]
[1729580157792,0.10272949,67680.0,67673.0,0.0093263]
[1729580157793,0.147756,67679.0,67673.0,0.0093263]
[1729580158008,0.10472949,67680.0,67670.0,0.247774]
[1729580158230,0.25248349,67680.0,67674.0,0.01100172]
[1729580158462,0.25248349,67680.0,67671.0,0.09248838]
[1729580158684,0.25248349,67680.0,67675.0,0.01099927]
[1729580158685,0.14691257,67680.0,67675.0,0.01099927]
[1729580158897,0.149756,67679.0,67670.0,0.247775]
[1729580159144,0.147756,67679.0,67671.0,0.01100908]
[1729580159595,0.443276,67678.0,67671.0,0.01100908]
[1729580159796,0.29466757,67680.0,67669.0,0.1]
[1729580160019,0.29266757,67680.0,67672.0,0.01100663]
[1729580160244,0.14491257,67680.0,67671.0,0.1]
[1729580160467,0.002,67679.0,67673.0,0.01100418]
[1729580160687,0.002,67679.0,67672.0,0.01100663]
[1729580160968,0.002,67679.0,67674.0,0.01100172]
[1729580161147,0.29266534,67680.0,67673.0,0.01100418]
[1729580161383,0.29266534,67680.0,67671.0,0.34026038]
[1729580161384,0.14592019,67680.0,67671.0,0.34026038]
[1729580161603,0.14592019,67680.0,67674.0,0.01100172]
[1729580161821,0.14592019,67680.0,67673.0,0.147768]
[1729580161822,0.001,67679.0,67675.0,0.09248838]
[1729580162041,0.10172949,67680.0,67675.0,0.10348765]
[1729580162042,0.10072949,67680.0,67675.0,0.10348765]
[1729580162516,0.00342949,67680.0,67675.0,0.10348765]
[1729580162930,0.004,67679.0,67675.0,0.10348765]
[1729580163347,0.004,67679.0,67675.0,0.25125265]
[1729580163588,0.007,67679.0,67675.0,0.10348765]
[1729580164010,0.007,67679.0,67675.0,0.01099927]
[1729580164277,0.004,67679.0,67675.0,0.01099927]
[1729580164434,0.004,67679.0,67672.0,0.09248838]
[1729580164654,0.008,67679.0,67676.0,0.01099682]
[1729580164896,0.008,67679.0,67672.0,0.09248838]
[1729580165117,0.004,67679.0,67677.0,0.01099436]
[1729580165380,0.004,67679.0,67670.0,0.0778]
[1729580165381,0.04563353,67680.0,67671.0,0.147773]
[1729580165584,0.04420404,67679.0,67672.0,0.01100663]
[1729580165815,0.0935,67677.0,67672.0,0.01100663]
[1729580166029,0.147762,67676.0,67666.0,0.0795]
[1729580166249,0.147768,67674.0,67673.0,0.01100418]
[1729580166464,0.295534,67674.0,67666.0,0.0795]
[1729580166671,0.147767,67674.0,67673.0,0.01102712]
[1729580166884,0.147771,67672.0,67663.0,0.1]
[1729580167098,0.147771,67672.0,67663.0,0.39675015]
[1729580167319,0.04421446,67671.0,67665.0,0.19248838]
[1729580167733,0.04421446,67671.0,67666.0,0.01106478]
[1729580167981,0.04421446,67672.0,67666.0,0.01106478]
[1729580168203,0.04421446,67672.0,67665.0,0.19248838]
[1729580168414,0.04421446,67672.0,67667.0,0.01106232]
[1729580168668,0.13441446,67673.0,67665.0,0.09248838]
[1729580168856,0.001,67671.0,67668.0,0.0100632]
[1729580169061,0.001,67671.0,67665.0,0.24627438]
[1729580169272,0.001,67671.0,67669.0,0.01006075]
[1729580169483,0.13441446,67673.0,67665.0,0.24027438]
[1729580169688,0.13441446,67673.0,67670.0,0.0100583]
[1729580169937,0.001,67671.0,67670.0,0.0100583]
[1729580170145,0.001,67671.0,67666.0,0.005]
[1729580170346,0.13441446,67673.0,67665.0,0.09248838]
[1729580170560,0.13441446,67673.0,67667.0,0.01006566]
[1729580170761,0.13441446,67673.0,67666.0,0.01006811]
[1729580170965,0.13441446,67673.0,67668.0,0.0100632]
[1729580171293,0.13441446,67673.0,67668.0,0.09248838]
[1729580171294,0.0902,67673.0,67668.0,0.09248838]
[1729580171447,0.0902,67673.0,67669.0,0.01006075]
[1729580171667,0.0912,67673.0,67669.0,0.01006075]
[1729580172325,0.0902,67673.0,67669.0,0.01006075]
[1729580172788,0.0902,67673.0,67669.0,0.01206075]
[1729580173221,0.0902,67673.0,67669.0,0.01306075]
[1729580173666,0.0902,67673.0,67669.0,0.01106075]
[1729580173927,0.0902,67673.0,67669.0,0.01206075]
[1729580174598,0.0902,67673.0,67669.0,0.01106075]
[1729580175028,0.0912,67673.0,67669.0,0.01106075]
[1729580175223,0.0902,67673.0,67669.0,0.01106075]
[1729580175646,0.0942,67673.0,67669.0,0.01106075]
[1729580176054,0.0942,67673.0,67669.0,0.01006075]
[1729580176702,0.0952,67673.0,67669.0,0.01006075]
[1729580177130,0.0942,67673.0,67669.0,0.01006075]
[1729580177580,0.0982,67673.0,67671.0,0.09248838]
[1729580177765,0.008,67673.0,67670.0,0.01062721]
[1729580177965,0.008,67673.0,67668.0,0.09248838]
[1729580178167,0.008,67673.0,67669.0,0.01062966]
[1729580178866,0.004,67673.0,67669.0,0.01062966]
[1729580179221,0.003,67673.0,67669.0,0.01062966]
[1729580179636,0.008,67673.0,67669.0,0.01062966]
[1729580179847,0.012,67673.0,67669.0,0.01062966]
[1729580180281,0.007,67673.0,67669.0,0.01062966]
[1729580180699,0.011,67673.0,67669.0,0.01062966]
[1729580180901,0.15877,67673.0,67669.0,0.01062966]
[1729580181104,0.147771,67672.0,67669.0,0.01062966]
[1729580181313,0.158769,67673.0,67669.0,0.01062966]
[1729580181560,0.147773,67672.0,67665.0,0.09248838]
[1729580181764,0.011,67673.0,67670.0,0.01066677]
[1729580181972,0.011,67673.0,67665.0,0.09248838]
[1729580182176,0.004,67673.0,67671.0,0.01066431]
[1729580182321,0.04818148,67673.0,67665.0,0.09248838]
[1729580182547,0.04418148,67673.0,67665.0,0.09248838]
[1729580182747,0.04418148,67673.0,67666.0,0.01067658]
[1729580183014,0.004,67672.0,67666.0,0.01067658]
[1729580183230,0.147775,67670.0,67666.0,0.01067658]
[1729580183451,0.147775,67670.0,67659.0,0.19248838]
[1729580183452,0.247173,67671.0,67663.0,0.1]
[1729580184002,0.247173,67671.0,67664.0,0.01068329]
[1729580184599,0.147776,67670.0,67664.0,0.01068329]
[1729580185288,0.0994,67671.0,67664.0,0.01068329]
[1729580185743,0.0994,67671.0,67664.0,0.01168329]
[1729580185970,0.247174,67671.0,67664.0,0.01068329]
[1729580186475,0.0994,67671.0,67663.0,0.002]
[1729580186708,0.0994,67671.0,67665.0,0.01068084]
[1729580186944,0.0994,67671.0,67665.0,0.09248838]
[1729580187144,0.14778,67669.0,67666.0,0.01068351]
[1729580187618,0.14778,67669.0,67664.0,0.002]
[1729580187619,0.147783,67667.0,67664.0,0.001]
[1729580188117,0.147783,67667.0,67662.0,0.09248838]
[1729580188341,0.147783,67667.0,67664.0,0.001]
[1729580188563,0.147783,67667.0,67662.0,0.09248838]
[1729580189369,0.148783,67667.0,67663.0,0.000826]
[1729580189798,0.443337,67669.0,67663.0,0.000826]
[1729580190648,0.0925,67666.0,67663.0,0.000826]
[1729580190850,0.147789,67664.0,67663.0,0.000826]
[1729580191791,0.19197048,67664.0,67663.0,0.000826]
[1729580192216,0.19697048,67664.0,67663.0,0.000826]
[1729580192426,0.152789,67664.0,67663.0,0.000826]
[1729580193088,0.159789,67664.0,67663.0,0.001826]
[1729580193300,0.20394679,67664.0,67663.0,0.001826]
[1729580193500,0.19694679,67664.0,67663.0,0.000826]
[1729580193725,0.04415779,67664.0,67663.0,0.000826]
[1729580193920,0.04415779,67666.0,67663.0,0.09931438]
[1729580194138,0.001,67664.0,67663.0,0.01757269]
[1729580194382,0.001,67664.0,67663.0,0.01759683]
[1729580194803,0.04415779,67667.0,67663.0,0.01159683]
[1729580195013,0.04415779,67667.0,67663.0,0.000826]
[1729580195470,0.14778,67668.0,67663.0,0.006826]
[1729580195471,0.001,67664.0,67663.0,0.006826]
[1729580195681,0.19193779,67668.0,67663.0,0.000826]
[1729580196111,0.001,67667.0,67663.0,0.000826]
[1729580196539,0.19193979,67667.0,67663.0,0.000826]
[1729580196952,0.19193979,67667.0,67663.0,0.004826]
[1729580197151,0.19193979,67667.0,67663.0,0.09731438]
[1729580197607,0.147783,67667.0,67663.0,0.09331438]
[1729580198438,0.147788,67665.0,67663.0,0.09331438]
[1729580198657,0.147786,67666.0,67663.0,0.09331438]
[1729580199773,0.147786,67666.0,67663.0,0.09531438]
[1729580199992,0.147786,67666.0,67663.0,0.09331438]
[1729580200495,0.147786,67666.0,67663.0,0.09431438]
[1729580200698,0.147786,67666.0,67663.0,0.003826]
[1729580201134,0.147786,67665.0,67663.0,0.003826]
[1729580201763,0.147786,67665.0,67663.0,0.001826]
[1729580201963,0.147786,67665.0,67663.0,0.002826]
[1729580202377,0.147786,67665.0,67663.0,0.001826]
[1729580202825,0.147786,67665.0,67663.0,0.003826]
[1729580203276,0.147784,67666.0,67663.0,0.003826]
[1729580203517,0.147787,67665.0,67663.0,0.003826]
[1729580203721,0.295565,67667.0,67663.0,0.003826]
[1729580203722,0.147789,67664.0,67663.0,0.003826]
[1729580203928,0.295569,67666.0,67663.0,0.002826]
[1729580204392,0.147789,67664.0,67663.0,0.004826]
[1729580204808,0.147789,67664.0,67663.0,0.002826]
[1729580205223,0.147789,67664.0,67663.0,0.003826]
[1729580205702,0.147789,67664.0,67663.0,0.001826]
[1729580205907,0.147789,67664.0,67663.0,0.000826]
[1729580206120,0.155789,67664.0,67663.0,0.001826]
[1729580207426,0.162789,67664.0,67663.0,0.002826]
[1729580209448,0.20695599,67664.0,67663.0,0.002826]
[1729580209670,0.162789,67664.0,67663.0,0.002826]
[1729580212525,0.22903949,67664.0,67663.0,0.002826]
[1729580215300,0.22908194,67664.0,67663.0,0.002826]
[1729580218866,0.08129294,67664.0,67663.0,0.002826]
[1729580219079,0.22908194,67664.0,67663.0,0.01364617]
[1729580219302,0.22908194,67664.0,67663.0,0.002826]
[1729580219790,0.08129294,67664.0,67663.0,0.002826]
[1729580220007,0.08129294,67664.0,67663.0,0.331817]
[1729580220008,0.015,67664.0,67663.0,0.331817]
[1729580220469,0.015,67664.0,67663.0,0.49159632]
[1729580220907,0.001652,67667.0,67666.0,0.147784]
[1729580221144,0.001652,67667.0,67666.0,0.31777238]
[1729580221342,0.001652,67667.0,67666.0,0.32858519]
[1729580222502,0.001652,67667.0,67666.0,0.33158519]
[1729580223518,0.001652,67667.0,67666.0,0.33042398]
[1729580223952,0.001652,67667.0,67666.0,0.33342398]
[1729580226215,0.001652,67667.0,67666.0,0.2409356]
[1729580226645,0.001652,67667.0,67666.0,0.33342398]
[1729580232361,0.001652,67667.0,67666.0,0.42722398]
[1729580233270,0.001652,67667.0,67666.0,0.57618313]
[1729580234595,0.001652,67667.0,67666.0,0.48369475]
[1729580234837,0.001652,67667.0,67666.0,0.57618313]
[1729580237823,0.001652,67667.0,67666.0,0.48369475]
[1729580238029,0.001652,67667.0,67666.0,0.57618313]
[1729580247269,0.001652,67667.0,67666.0,0.48369475]
[1729580247481,0.001652,67667.0,67666.0,0.57618313]
[1729580248944,0.001652,67667.0,67666.0,0.57700913]
[1729580251351,0.001652,67667.0,67666.0,0.57700913]
[1729580261170,0.001652,67667.0,67666.0,0.48452075]
[1729580261386,0.001652,67667.0,67666.0,0.57700913]
[1729580262087,0.001652,67667.0,67666.0,0.48452075]
[1729580262525,0.00147413,67667.0,67666.0,0.57700913]
[1729580263211,0.00147413,67667.0,67666.0,0.48452075]
[1729580263448,0.00147413,67667.0,67666.0,0.57700913]
[1729580266118,0.00147413,67667.0,67666.0,0.48452075]
[1729580266332,0.00147413,67667.0,67666.0,0.57700913]
[1729580268173,0.00147413,67667.0,67666.0,0.48452075]
[1729580268388,0.00147413,67667.0,67666.0,0.57700913]
[1729580269994,0.00147413,67667.0,67666.0,0.48452075]
[1729580270211,0.00147413,67667.0,67666.0,0.57700913]
[1729580276339,0.19352686,67667.0,67666.0,0.01763881]
[1729580276786,0.14925613,67667.0,67666.0,0.006826]
[1729580277299,0.14925613,67667.0,67666.0,0.003826]
[1729580278622,0.15025613,67667.0,67666.0,0.003826]
[1729580279071,0.15025613,67667.0,67666.0,0.01413571]
[1729580279289,0.15025613,67667.0,67666.0,0.000826]
[1729580279507,0.15025613,67667.0,67666.0,0.01113571]
[1729580279723,0.15125613,67667.0,67666.0,0.000826]
[1729580280155,0.15025613,67667.0,67666.0,0.01113571]
[1729580280591,0.15225613,67667.0,67666.0,0.01113571]
[1729580280825,0.15025613,67667.0,67666.0,0.01113571]
[1729580281042,0.15025613,67667.0,67666.0,0.000826]
[1729580281277,0.19551138,67667.0,67666.0,0.01113571]
[1729580281403,0.19551138,67667.0,67666.0,0.000826]
[1729580281625,0.15125613,67667.0,67666.0,0.01113571]
[1729580281838,0.15125613,67667.0,67666.0,0.000826]
[1729580282315,0.15125613,67667.0,67666.0,0.01113571]
[1729580284688,0.00347413,67667.0,67666.0,0.01113571]
[1729580284889,0.04772211,67667.0,67666.0,0.000826]
[1729580285092,0.04772211,67667.0,67666.0,0.01113571]
[1729580285293,0.04772211,67667.0,67666.0,0.000826]
[1729580285432,0.04772211,67667.0,67666.0,0.01113571]
[1729580285634,0.04772211,67667.0,67666.0,0.000826]
[1729580285840,0.19550411,67667.0,67666.0,0.01113571]
[1729580286045,0.04772211,67667.0,67666.0,0.000826]
[1729580286257,0.04772211,67667.0,67666.0,0.01113571]
[1729580286468,0.04772211,67667.0,67666.0,0.000826]
[1729580286665,0.04772211,67667.0,67666.0,0.01113571]
[1729580288508,0.04772211,67667.0,67666.0,0.10362409]
[1729580288731,0.00347413,67667.0,67666.0,0.10362409]
[1729580290907,0.04772211,67667.0,67666.0,0.10362409]
[1729580291169,0.04772211,67667.0,67666.0,0.01113571]
[1729580292038,0.04672211,67667.0,67666.0,0.01113571]
[1729580292464,0.04772211,67667.0,67666.0,0.01113571]
[1729580293130,0.04972211,67667.0,67666.0,0.01113571]
[1729580293530,0.04972211,67667.0,67666.0,0.000826]
[1729580294154,0.04972211,67667.0,67666.0,0.01115173]
[1729580295089,0.04972211,67667.0,67666.0,0.000826]
[1729580295304,0.04972211,67667.0,67666.0,0.01115173]
[1729580295532,0.04972211,67667.0,67666.0,0.000826]
[1729580295973,0.29590411,67667.0,67666.0,0.01115173]
[1729580296179,0.29590411,67667.0,67666.0,0.000826]
[1729580296826,0.29590411,67667.0,67666.0,0.01115173]
[1729580297039,0.29590411,67667.0,67666.0,0.000826]
[1729580297269,0.29590411,67667.0,67666.0,0.01115173]
[1729580297508,0.25165613,67667.0,67666.0,0.000826]
[1729580297721,0.25165613,67667.0,67666.0,0.01115173]
[1729580297939,0.25165613,67667.0,67666.0,0.000826]
[1729580298165,0.10387413,67667.0,67666.0,0.000826]
[1729580298380,0.29588887,67667.0,67666.0,0.01115173]
[1729580298587,0.29588887,67667.0,67666.0,0.000826]
[1729580300802,0.29588796,67667.0,67666.0,0.000826]
[1729580301765,0.68277617,67667.0,67666.0,0.000826]
[1729580301986,0.59028779,67667.0,67666.0,0.000826]
[1729580302211,0.5943125,67667.0,67666.0,0.000826]
[1729580302429,0.50182412,67667.0,67666.0,0.000826]
[1729580304445,0.59026446,67667.0,67666.0,0.000826]
[1729580306548,0.58826446,67667.0,67666.0,0.000826]
[1729580306987,0.59426446,67667.0,67666.0,0.001826]
[1729580307620,0.58826446,67667.0,67666.0,0.000826]
[1729580308090,0.58626446,67667.0,67666.0,0.000826]
[1729580308481,0.59326446,67667.0,67666.0,0.000826]
[1729580309108,0.58726446,67667.0,67666.0,0.005826]
[1729580309527,0.58826446,67667.0,67666.0,0.009826]
[1729580309736,0.59496591,67667.0,67666.0,0.009826]
[1729580310371,0.50652557,67667.0,67666.0,0.009826]
[1729580310582,0.59496591,67667.0,67666.0,0.009826]
[1729580311460,0.50652557,67667.0,67666.0,0.009826]
[1729580311673,0.59496591,67667.0,67666.0,0.009826]
[1729580312322,0.50652557,67667.0,67666.0,0.009826]
[1729580312777,0.59493805,67667.0,67666.0,0.009826]
[1729580313001,0.50652557,67667.0,67666.0,0.009826]
[1729580313439,0.59493446,67667.0,67666.0,0.009826]
[1729580313641,0.50652557,67667.0,67666.0,0.009826]
[1729580314336,0.59493428,67667.0,67666.0,0.009826]
[1729580314595,0.50652557,67667.0,67666.0,0.009826]
[1729580314802,0.42462557,67667.0,67666.0,0.009826]
[1729580315471,0.51293068,67667.0,67666.0,0.009826]
[1729580315692,0.42452613,67667.0,67666.0,0.009826]
[1729580316338,0.51293676,67667.0,67666.0,0.009826]
[1729580316791,0.42452613,67667.0,67666.0,0.009826]
[1729580317224,0.51293804,67667.0,67666.0,0.009826]
[1729580318523,0.42452613,67667.0,67666.0,0.009826]
[1729580319632,0.53503181,67667.0,67666.0,0.009826]
[1729580320288,0.53507876,67667.0,67666.0,0.009826]
[1729580321819,0.53407876,67667.0,67666.0,0.005826]
[1729580322250,0.53407876,67667.0,67666.0,0.009826]
[1729580322457,0.53307876,67667.0,67666.0,0.004826]
[1729580322671,0.53307876,67667.0,67666.0,0.000826]
[1729580322868,0.53307876,67667.0,67666.0,0.008826]
[1729580323548,0.53307876,67667.0,67666.0,0.004826]
[1729580323765,0.53307876,67667.0,67666.0,0.008826]
[1729580333625,0.42255412,67667.0,67666.0,0.008826]
[1729580334456,0.42255412,67667.0,67666.0,0.004826]
[1729580334933,0.42255412,67667.0,67666.0,0.007826]
[1729580336191,0.42255412,67667.0,67666.0,0.000826]
[1729580336571,0.42255412,67667.0,67666.0,0.006826]
[1729580339557,0.5150425,67667.0,67666.0,0.006826]
[1729580340053,0.51508113,67667.0,67666.0,0.006826]
[1729580340281,0.42259275,67667.0,67666.0,0.006826]
[1729580340937,0.42259275,67667.0,67666.0,0.000826]
[1729580341184,0.42259275,67667.0,67666.0,0.002826]
[1729580341413,0.42259275,67667.0,67666.0,0.004826]
[1729580344079,0.25935758,67667.0,67666.0,0.004826]
[1729580345425,0.42264831,67667.0,67666.0,0.004826]
[1729580349271,0.65210746,67667.0,67666.0,0.004826]
[1729580349725,0.74959584,67667.0,67666.0,0.004826]
[1729580349972,0.6571342,67667.0,67666.0,0.004826]
[1729580351113,0.6571342,67667.0,67666.0,0.002826]
[1729580351343,0.6571342,67667.0,67666.0,0.000826]
[1729580351561,0.6571342,67667.0,67666.0,0.001826]
[1729580351788,0.85462258,67667.0,67666.0,0.001826]
[1729580352253,0.85462258,67667.0,67666.0,0.000826]
[1729580353671,0.85462258,67667.0,67666.0,0.002826]
[1729580354333,0.85462258,67667.0,67666.0,0.000826]
[1729580354759,0.85562258,67667.0,67666.0,0.000826]
[1729580355199,0.85562258,67667.0,67666.0,0.001826]
[1729580355200,0.86262258,67667.0,67666.0,0.001826]
[1729580355432,1.01170257,67667.0,67666.0,0.001826]
[1729580355664,0.87262258,67667.0,67666.0,0.001826]
[1729580356110,0.62926576,67664.0,67663.0,0.000826]
[1729580356354,0.62926576,67664.0,67632.0,0.0075]
[1729580356355,0.01,67647.0,67646.0,0.22265268]
[1729580356583,0.751491,67647.0,67646.0,0.22265268]
[1729580356815,0.751491,67647.0,67646.0,0.01090098]
[1729580357051,0.751491,67647.0,67632.0,0.0075]
[1729580357052,0.15285,67636.0,67632.0,0.0075]
[1729580357291,0.152856,67633.0,67632.0,0.0075]
[1729580357532,0.28945037,67633.0,67632.0,0.0075]
[1729580357798,0.24534438,67633.0,67632.0,0.0075]
[1729580358941,0.29442313,67633.0,67632.0,0.0075]
[1729580359171,0.29542313,67633.0,67632.0,0.0115]
[1729580359624,0.25134438,67633.0,67632.0,0.0115]
[1729580360568,0.40130353,67633.0,67632.0,0.0145]
[1729580360777,0.40030353,67633.0,67632.0,0.0105]
[1729580361004,0.39930353,67633.0,67632.0,0.0075]
[1729580361223,0.39930353,67633.0,67632.0,0.0115]
[1729580361224,0.40030353,67633.0,67632.0,0.0115]
[1729580361461,0.40130353,67633.0,67632.0,0.0145]
[1729580361675,0.40030353,67633.0,67632.0,0.0105]